[Event "Fagernes Chess GM-Swiss 2024"]
[Site "Fagernes"]
[Date "2024.03.28"]
[Round "6.5"]
[White "Puranik, Abhimanyu"]
[Black "Sokolovsky, Yahli"]
[Result "1/2-1/2"]
[ECO "A85"]
[WhiteElo "2618"]
[BlackElo "2475"]
[Annotator "TA"]
[PlyCount "99"]
[EventDate "2024.03.25"]
[EventType "swiss"]
[EventCountry "NOR"]
[SourceTitle "playchess.com"]
[Source "ChessBase"]
[SourceQuality "1"]
[TimeControl "40/6000+30:2400+30"]

{[%evp 15,99,19,14,0,16,17,57,43,56,56,64,48,80,37,47,46,47,46,43,40,43,39,84,49,77,49,76,61,76,59,81,51,76,13,66,19,78,37,77,10,29,19,52,27,24,15,19,0,0,0,0,0,25,0,7,0,18,0,33,33,38,33,33,33,32,32,43,33,33,33,33,30,30,30,30,30,30,30,38,38,38,38,38,0,38,0]} 1. Nf3 {[%emt 0:01:45]} Nf6 {[%emt 0:00:06]} 2. c4 {[%emt 0:00:15]} e6 {[%emt 0:00:04]} 3. Nc3 {[%emt 0:00:31]} d5 {[%emt 0:00:05]} 4. d4 {[%emt 0:00:17]} c6 {[%emt 0:00:17]} 5. e3 {[%emt 0:00:38]} Ne4 {[%emt 0:01:48]} 6. Qc2 {[%emt 0:01:35]} f5 {[%emt 0:03:40]} 7. Be2 {[%emt 0:01:05]} Nd7 {[%emt 0:01:20]} 8. O-O {[%emt 0:01:59]} Bd6 {[%emt 0:00:06]} 9. c5 {[%emt 0:10:02]} Bb8 {[%emt 0:12:46]} 10. b4 {[%emt 0:00:42]} Qc7 {[%emt 0:01:27]} 11. g3 {[%emt 0:10:31]} Nxc3 {[%emt 0:19:49]} 12. Qxc3 {[%emt 0:00:07]} Nf6 {[%emt 0:00:05]} 13. Qc2 {[%emt 0:14:45]} Bd7 {[%emt 0:09:17]} 14. Rb1 {[%emt 0:05:11]} O-O {[%emt 0:03:47]} 15. Ne5 {[%emt 0:09:44]} a6 {[%emt 0:06:37]} 16. Bd2 {[%emt 0:02:35]} Qd8 {[%emt 0:02:32]} 17. f3 {[%emt 0:03:35]} Be8 {[%emt 0:01:46]} 18. a4 {[%emt 0:02:16]} Nd7 {[%emt 0:03:00]} 19. Bc3 {[%emt 0:01:39] White has more active pieces. The black rooks are passive.} Qg5 {[%emt 0:05:01]} 20. Qd2 {[%emt 0:01:52]} h5 {[%emt 0:01:20]} 21. Rf2 {[%emt 0:05:26]} Qf6 {[%emt 0:02:18]} 22. Qb2 {[%emt 0:04:53]} Qg5 {[%emt 0:01:21]} 23. Rbf1 {[%emt 0:02:41]} Bc7 {[%emt 0:04:14]} (23... Qxe3 $2 24. Nxd7 (24. Bd2 Qxe5 25. dxe5 Bxe5 $18) 24... Qg5 (24... Bxd7 $2 25. Bd2 $18) 25. Bd2 $18 (25. Nxf8 Kxf8 26. Kh1 Qf6 $18)) 24. Bd2 {[%emt 0:02:35]} ({White should play} 24. f4 $16 Qe7 25. Be1 Nxe5 26. fxe5 (26. dxe5 a5 $11)) 24... Qe7 {[%emt 0:03:15]} (24... Nxe5 $11 25. dxe5 a5) 25. Rc1 {[%emt 0:03:44]} (25. f4 $14) 25... Qf6 {[%emt 0:00:42]} (25... h4 $11) 26. Bc3 {[%emt 0:00:13]} Qg5 {[%emt 0:00:21]} 27. Bf1 {[%emt 0:06:29]} (27. f4 $16 Qh6 28. Bd3) 27... h4 {[%emt 0:07:25]} (27... Qxe3 $2 {perishes.} 28. Nxd7 (28. Bd2 Qxf2+ 29. Kxf2 Nxe5 $18) 28... Qg5 (28... Bxd7 $2 29. Bd2 $18) 29. Bd2 $18 (29. Nxf8 Kxf8 30. Bd2 Qg6 $18)) 28. f4 {[%emt 0:00:32]} Qe7 {[%emt 0:00:26]} 29. Nxd7 {[%emt 0:00:36]} Bxd7 {[%emt 0:00:15]} 30. Rg2 {[%emt 0:02:10]} hxg3 {[%emt 0:03:56]} 31. Rxg3 {[%emt 0:00:30]} Kf7 {[%emt 0:06:48]} 32. Rc2 {[%emt 0:02:45]} Rh8 {[%emt 0:00:01]} 33. Rcg2 {[%emt 0:00:07]} Rh7 {[%emt 0:01:19]} 34. Be2 {[%emt 0:01:45]} Rg8 {[%emt 0:01:03][%cal Ba8g8,Bg8g6,Bg6h6][%mdl 32]} 35. Be1 {[%emt 0:03:23][%cal Bc3e1,Be1h4,Bh4g5][%mdl 32]} g6 {[%emt 0:02:07]} 36. Bf3 {[%emt 0:05:56]} Qe8 {[%emt 0:00:55] [#]} 37. h4 $1 {[%emt 0:01:26]} Rxh4 {[%emt 0:04:16] [#]} 38. Rxg6 $1 {[%emt 0:00:06]} Rxg6 {[%emt 0:00:06]} 39. Bxh4 {[%emt 0:00:30]} Rh6 {[%emt 0:01:56] Wards off Bh5+} 40. Bg5 {[%emt 0:02:57]} Rh3 {[%emt 0:00:19]} 41. Rh2 {[%emt 0:05:36]} Qh8 {[%emt 0:04:00]} (41... Rxf3 $2 {loses.} 42. Qg2 $18) 42. a5 {[%emt 0:06:12]} Kg6 {[%emt 0:20:26]} 43. Qg2 {[%emt 0:19:27] The board is on fire.} Rxh2 {[%emt 0:00:02]} 44. Qxh2 {[%emt 0:00:05]} Qxh2+ {[%emt 0:00:07]} 45. Kxh2 $11 {[%emt 0:00:04] KBB-KBB} e5 {[%emt 0:00:26]} 46. Kg3 {[%emt 0:00:26]} exd4 {[%emt 0:02:47]} 47. exd4 {[%emt 0:00:03]} Be8 {[%emt 0:00:42]} 48. Kh4 {[%emt 0:00:08] White threatens Bh5+ and mate.} Kg7 {[%emt 0:00:22]} 49. Bh5 {[%emt 0:00:57]} Bg6 {[%emt 0:00:36]} 50. Bxg6 {[%emt 0:00:49] Weighted Error Value: White=0.16 (very precise) /Black=0.16 (very precise) .  Mistake:       	White=3     	Black=2      Inaccurate:     	White=7     	Black=8      OK:         	White=10    	Black=13     Best:        	White=1     	Black=1      Brilliant:      	White=1     	---} 1/2-1/2

[Event "Fagernes Chess GM-Swiss 2024"]
[Site "Fagernes"]
[Date "2024.03.28"]
[Round "6.6"]
[White "Sasikiran, Krishnan"]
[Black "Willow, Jonah B"]
[Result "1-0"]
[ECO "E48"]
[WhiteElo "2578"]
[BlackElo "2446"]
[Annotator "TA"]
[PlyCount "175"]
[EventDate "2024.03.25"]
[EventType "swiss"]
[EventCountry "NOR"]
[SourceTitle "playchess.com"]
[Source "ChessBase"]
[SourceQuality "1"]
[TimeControl "40/6000+30:2400+30"]

{[%evp 16,175,13,12,0,0,0,0,13,6,28,21,56,22,40,44,94,68,54,73,68,58,77,28,260,264,313,137,320,315,295,62,367,359,693,334,327,330,325,295,289,289,486,403,406,339,504,493,464,252,243,237,238,238,354,354,786,433,422,287,295,295,309,278,295,134,122,145,175,144,134,102,161,152,167,164,170,156,230,195,205,146,227,153,153,153,179,193,186,210,204,178,196,18,23,14,236,236,236,216,190,155,86,83,165,143,124,124,271,271,572,572,572,551,498,498,491,466,466,0,466,466,466,466,4860,2192,29964,29965,29967,29968,29968,29966,29965,29966,29966,29962,29963,29963,29957,29963,29961,12327,29964,137,29972,29973,29973,29974,29974,29974,29975,29976,29977,29976,29977,29977,29977,29978,29978,29979,29980,29981]} 1. d4 {[%emt 0:00:05]} Nf6 {[%emt 0:04:08]} 2. c4 {[%emt 0:00:11]} e6 {[%emt 0:00:46]} 3. Nc3 {[%emt 0:00:12]} Bb4 {[%emt 0:00:28]} 4. e3 {[%emt 0:00:16]} O-O {[%emt 0:02:50]} 5. Bd3 {[%emt 0:00:56]} c5 {[%emt 0:03:16]} 6. Nge2 {[%emt 0:03:47]} cxd4 {[%emt 0:00:15]} 7. exd4 {[%emt 0:00:44]} d5 {[%emt 0:00:04]} 8. cxd5 {[%emt 0:00:29]} Nxd5 {[%emt 0:00:04]} 9. O-O {[%emt 0:00:46]} Re8 {[%emt 0:00:16]} 10. Qc2 {[%emt 0:06:00]} g6 {[%emt 0:08:51]} 11. Bh6 {[%emt 0:04:46]} Nc6 {[%emt 0:08:44] Die Stellung ist ausgeglichen.} 12. Rad1 {[%emt 0:05:16]} (12. Rfe1 {scheint wilder zu sein.} Qh4 13. Qd2 Be7 14. g3) 12... Bf8 {[%emt 0:10:56]} 13. Qc1 {[%emt 0:07:09]} Nxc3 {[%emt 0:34:23]} 14. bxc3 {[%emt 0:08:21]} (14. Nxc3 {vereinfacht} Ne7 15. Bxf8 Rxf8 16. Be4) 14... b6 {[%emt 0:10:16]} (14... Bd7 {vereinfacht} 15. Bxf8 Rxf8 16. Rfe1 Rc8) 15. Ng3 {[%emt 0:07:40]} Be7 {[%emt 0:00:59]} (15... Na5 $14) 16. Qf4 {[%emt 0:11:01]} Qd6 {[%emt 0:05:25]} 17. Qf3 {[%emt 0:05:45]} Bb7 {[%emt 0:00:08]} 18. Ne4 {[%emt 0:04:03]} Qd8 {[%emt 0:00:56]} 19. Qf4 {[%emt 0:09:09] Weiß hat aktiveres Spiel.} (19. Qg3 $1 $16) 19... Na5 $2 {[%emt 0:03:46]} (19... f5 $11) 20. Qe5 $1 $18 {[%emt 0:04:08]} f6 {[%emt 0:00:14]} 21. Qxe6+ {[%emt 0:02:41]} Kh8 {[%emt 0:00:01]} 22. Qf7 {[%emt 0:04:56]} Rg8 {[%emt 0:00:04] Lässt Qg7+ nicht zu} 23. c4 $40 {[%emt 0:07:09][%mdl 128] Pariert Bd5. Weiss hat was vor.} ({Vorzuziehen ist} 23. Rfe1 $18 {[%cal Oe4g5] Droht Matt per Ng5!} Bd5 24. Ng5 fxg5 25. Qxe7 Qxe7 26. Rxe7) 23... Nc6 $2 {[%emt 0:01:34][%mdl 8192]} (23... f5 $1 $14) 24. Rfe1 {[%emt 0:04:09][%cal Bf1e1,Be1e5,Be5e6][%mdl 32]} (24. d5 $2 Ne5 25. Qe6 Bc8 $19) 24... Rc8 $2 {[%emt 0:02:04]} (24... f5 25. Nc3 Qe8) 25. d5 {[%emt 0:04:40]} (25. c5 $142 {[%cal Oe4d6] Nd6! ist eine echte Drohung.} Rc7 26. Bc4) 25... Ne5 {[%emt 0:01:07] [#]} 26. Ng5 {[%emt 0:01:23][%mdl 512]} fxg5 {[%emt 0:00:10]} 27. Rxe5 {[%emt 0:00:06]} Rc7 {[%emt 0:00:55][%cal Bc8c7,Bc7f7,Bf7f6][%mdl 32]} 28. Qf3 {[%emt 0:01:03]} b5 $2 {[%emt 0:00:42]} (28... Bf6) 29. Rde1 {[%emt 0:01:14][%cal Oe5e7] Rxe7! wäre nun fies.} Bf6 {[%emt 0:00:31]} 30. Re6 {[%emt 0:02:47]} bxc4 {[%emt 0:00:23]} (30... Bg7 $142) 31. Be4 {[%emt 0:01:39]} (31. Qxf6+ Qxf6 32. Rxf6 cxd3 33. Bxg5 (33. Rd6 $2 d2 $19) 33... Rd7 $16) 31... Rf7 {[%emt 0:02:18]} 32. Bxg5 {[%emt 0:00:17]} (32. d6 $142 g4 33. Qf4 (33. Qxg4 Bc8 $18)) 32... Rgf8 {[%emt 0:00:05]} 33. Rxf6 {[%emt 0:00:42]} Rxf6 {[%emt 0:00:01]} 34. Qc3 {[%emt 0:00:11]} Qb6 {[%emt 0:00:21]} (34... Kg8 $142 35. Rd1 (35. Bxf6 Qxf6 36. Qxf6 Rxf6 $18) (35. Qxc4 Qa5 $16) 35... Ba6) 35. Bf3 {[%emt 0:03:13] Ein starkes Läuferpaar.} (35. Bxf6+ Qxf6 36. Qxf6+ (36. Qxc4 $2 Qxf2+ 37. Kh1 Qxe1+) 36... Rxf6 $18) 35... Ba6 $2 {[%emt 0:01:32]} (35... Kg8 36. Bxf6 (36. Qxc4 Qa5 $18) 36... Qxf6 37. Qxf6 (37. Qxc4 Ba6 $18) 37... Rxf6) 36. h4 {[%emt 0:00:59][%cal Oe1e6]} Kg8 {[%emt 0:00:18]} 37. Bxf6 {[%emt 0:00:19]} Qxf6 {[%emt 0:00:04]} 38. Qa3 {[%emt 0:00:36] Schwarz muss nun d6 beachten.} Bc8 {[%emt 0:02:32]} 39. Qxa7 {[%emt 0:00:36][%cal Od5d6] Droht d6! und aus.} Qxh4 {[%emt 0:00:17][%cal Of8f3]} 40. Qe7 {[%emt 0:00:26]} (40. Re4 $18 {und Weiss behält klar die Oberhand.} Qf6 41. Rxc4) 40... Qxe7 $16 {[%emt 0:02:22]} 41. Rxe7 {[%emt 0:40:06][%mdl 4096] Endspiel. KRB-KRB} Rf7 {[%emt 0:42:17]} 42. Re8+ {[%emt 0:00:00]} Rf8 {[%emt 0:00:00]} 43. Re3 {[%emt 0:00:00]} Rd8 {[%emt 0:00:00]} (43... Bd7 $16 {ist eine bessere Verteidigung.}) 44. Be2 $18 {[%emt 0:00:00]} Ba6 {[%emt 0:00:00]} 45. Ra3 {[%emt 0:00:00]} Rd6 {[%emt 0:00:00]} 46. f4 {[%emt 0:00:00]} Kg7 {[%emt 0:00:00]} (46... c3 $16 {war einen Versuch wert.}) 47. Kf2 {[%emt 0:00:00]} Kf6 {[%emt 0:00:00]} 48. Ra5 {[%emt 0:00:00]} g5 {[%emt 0:00:00]} (48... c3 $16 {ist wohl besser.}) 49. Ke3 {[%emt 0:00:00]} gxf4+ {[%emt 0:00:00]} 50. Kxf4 {[%emt 0:00:00]} c3 {[%emt 0:00:00]} 51. Bxa6 {[%emt 0:00:00] KRB-KR} (51. Rxa6 Rxa6 52. Ke3 (52. Bxa6 $2 c2 $19) 52... Rxa2 $19) 51... c2 {[%emt 0:00:00] [#]} 52. Rc5 $1 {[%emt 0:00:00]} Rxa6 {[%emt 0:00:00]} 53. Rxc2 {[%emt 0:00:00] Droht stark Rc6+. KR-KR} Ra4+ {[%emt 0:00:00]} 54. Ke3 $2 {[%emt 0:00:00]} ({Besser ist} 54. Kf3 $18) 54... Ke5 $11 {[%emt 0:00:00]} 55. Rd2 {[%emt 0:00:00] Zielt auf d6 ab.} Kd6 $2 {[%emt 0:00:00]} (55... Ra3+ $1 $11 56. Kf2 Kd6) 56. Kf3 $18 {[%emt 0:00:11]} h5 {[%emt 0:00:00]} 57. Kg3 {[%emt 0:01:13]} Rg4+ {[%emt 0:00:00]} 58. Kh3 $1 {[%emt 0:01:56]} Rc4 {[%emt 0:00:00]} 59. Rd3 {[%emt 0:01:46]} Ra4 {[%emt 0:00:00]} (59... Re4 $16 {war angesagt.}) 60. a3 {[%emt 0:00:07]} Rc4 {[%emt 0:00:00]} 61. Kh2 $1 {[%emt 0:00:36] Und Rh3 würde nun gewinnen.} Ra4 {[%emt 0:00:00]} (61... Re4 $16 62. Rb3 Rd4) 62. Rh3 $1 {[%emt 0:00:38]} h4 $2 {[%emt 0:00:00]} (62... Kxd5 {ist zäher.} 63. Rxh5+ Ke6) 63. Rd3 {[%emt 0:00:19]} Rc4 {[%emt 0:00:00]} 64. Kh3 {[%emt 0:00:20]} Ra4 {[%emt 0:00:17]} 65. Rd2 {[%emt 0:00:55]} Rc4 {[%emt 0:01:46]} 66. Rd1 {[%emt 0:02:08]} Re4 {[%emt 0:00:24]} 67. Rd2 {[%emt 0:00:18]} Rc4 $1 {[%emt 0:00:04]} 68. Rb2 {[%emt 0:00:07]} Kxd5 {[%emt 0:01:49]} 69. Rb4 {[%emt 0:00:15]} Rc3+ {[%emt 0:00:10]} (69... Rc2 $142 70. a4 (70. Rxh4 Rc3+ 71. g3 Rxa3 $18) 70... Ke5) 70. Kxh4 {[%emt 0:00:05]} Rxa3 {[%emt 0:00:04]} 71. g4 {[%emt 0:00:48]} Ke5 {[%emt 0:09:48]} 72. Rb6 {[%emt 0:00:38]} Ra8 {[%emt 0:01:10]} 73. Kg5 {[%emt 0:01:09]} Rh8 {[%emt 0:01:01]} 74. Rh6 {[%emt 0:00:47]} Ra8 {[%emt 0:00:42]} 75. Rg6 {[%emt 0:00:25]} Ra1 {[%emt 0:03:17]} 76. Rg8 {[%emt 0:00:41]} Ke6 {[%emt 0:00:18]} 77. Kg6 {[%emt 0:00:10]} Ke7 {[%emt 0:00:05] [#]} 78. g5 $1 {[%emt 0:00:50][%cal Bg4g5,Bg5g6][%mdl 32] Beabsichtigt Kg7 und Matt.} Rg1 {[%emt 0:00:51] [#]} 79. Kh7 $1 {[%emt 0:01:06] Weiss droht g6 und Matt.} Rh1+ $2 {[%emt 0:01:04][%mdl 8192]} (79... Rg4 $16 80. g6 Rh4+ 81. Kg7 Rh2) 80. Kg7 {[%emt 0:00:08] Weiß setzt Matt.} Rg1 {[%emt 0:00:41]} 81. g6 {[%emt 0:00:06]} Rg2 {[%emt 0:00:27]} 82. Ra8 {[%emt 0:00:06]} Rg1 {[%emt 0:00:17]} 83. Ra2 {[%emt 0:00:15]} Re1 {[%emt 0:00:22]} 84. Rf2 {[%emt 0:00:16]} Re3 {[%emt 0:00:35]} 85. Kh7 {[%emt 0:00:12]} Rh3+ {[%emt 0:00:15]} 86. Kg8 {[%emt 0:00:06]} Rg3 {[%emt 0:00:18]} 87. g7 {[%emt 0:00:06]} Re3 {[%emt 0:01:01]} 88. Rh2 {[%emt 0:00:34] Gewichteter Fehlerwert: Weiß=0.49/Schwarz=0.51.  Verlustzug:     	---       	Schwarz=4     Gewinn verpasst:   	Weiß=3     	---        Fehler:       	Weiß=3     	Schwarz=13    Ungenau:       	Weiß=3     	Schwarz=2     OK:         	Weiß=19    	Schwarz=15    Bester:       	Weiß=10    	Schwarz=11    Stark:        	Weiß=4     	Schwarz=1} 1-0

[Event "Fagernes Chess GM-Swiss 2024"]
[Site "Fagernes"]
[Date "2024.03.28"]
[Round "6.7"]
[White "Amar, Elham"]
[Black "Trost, Edvin"]
[Result "1/2-1/2"]
[ECO "B30"]
[WhiteElo "2567"]
[BlackElo "2432"]
[Annotator "RC"]
[PlyCount "108"]
[EventDate "2024.03.25"]
[EventType "swiss"]
[EventCountry "NOR"]
[SourceTitle "playchess.com"]
[Source "ChessBase"]
[SourceQuality "1"]
[TimeControl "40/6000+30:2400+30"]

1. e4 {[%emt 0:01:06]} c5 {[%emt 0:01:43]} 2. Nf3 {[%emt 0:00:10]} Nc6 {[%emt 0:00:03]} 3. Nc3 {[%emt 0:00:21]} e5 {[%emt 0:00:05]} 4. Bc4 {[%emt 0:00:17]} Be7 {[%emt 0:00:06]} 5. d3 {[%emt 0:03:52]} d6 {[%emt 0:00:43]} 6. a4 {[%emt 0:07:02]} h6 {[%emt 0:00:21]} 7. Nd2 {[%emt 0:02:12]} Nf6 {[%emt 0:03:59]} 8. Nf1 {[%emt 0:00:51]} Bg4 {[%emt 0:08:26]} 9. f3 {[%emt 0:00:12]} Be6 {[%emt 0:00:07]} 10. Ne3 {[%emt 0:00:11]} Nb4 {[%emt 0:01:24]} 11. O-O {[%emt 0:05:09]} O-O {[%emt 0:01:09]} 12. Qe2 {[%emt 0:01:49]} Re8 {[%emt 0:10:54]} 13. Bd2 {[%emt 0:05:40]} Bf8 {[%emt 0:07:34]} 14. Rfe1 {[%emt 0:08:25]} d5 {[%emt 0:37:44]} 15. exd5 {[%emt 0:02:58]} Nfxd5 {[%emt 0:00:57]} 16. Nexd5 {[%emt 0:00:25]} Nxd5 {[%emt 0:00:14]} 17. Nxd5 {[%emt 0:00:11]} Bxd5 {[%emt 0:00:08]} 18. Bc3 {[%emt 0:00:08]} Qd7 {[%emt 0:08:00]} 19. Qf2 {[%emt 0:37:27]} f6 {[%emt 0:09:20]} 20. Bb5 {[%emt 0:09:37]} Bc6 {[%emt 0:00:05]} 21. Bxc6 {[%emt 0:00:28]} Qxc6 {[%emt 0:00:07]} 22. Qh4 {[%emt 0:00:02]} Qd5 {[%emt 0:04:32]} 23. Re2 {[%emt 0:00:52]} b6 {[%emt 0:02:59]} 24. Rae1 {[%emt 0:01:03]} Red8 {[%emt 0:01:38]} 25. f4 {[%emt 0:05:26]} c4 {[%emt 0:01:30]} 26. fxe5 {[%emt 0:01:20]} cxd3 {[%emt 0:00:06]} 27. cxd3 {[%emt 0:00:08]} fxe5 {[%emt 0:00:33]} 28. Rxe5 {[%emt 0:02:20]} Qxd3 {[%emt 0:00:27]} 29. Qg4 {[%emt 0:02:37]} Qd7 {[%emt 0:01:47]} 30. Rf5 {[%emt 0:00:43]} Kh7 {[%emt 0:06:02]} 31. Qe4 {[%emt 0:02:58]} Qd3 {[%emt 0:01:12]} 32. Qxd3 {[%emt 0:05:23]} Rxd3 {[%emt 0:00:01]} 33. Rf7 {[%emt 0:00:06]} Bc5+ {[%emt 0:00:24]} 34. Kf1 {[%emt 0:00:30]} Bd4 {[%emt 0:00:01]} 35. Bxd4 {[%emt 0:00:22]} Rxd4 {[%emt 0:00:01]} 36. Ree7 {[%emt 0:00:10]} Rg8 {[%emt 0:01:36]} 37. Rxa7 {[%emt 0:01:12]} Rb4 {[%emt 0:00:04]} 38. Rf2 {[%emt 0:01:16]} Rc8 {[%emt 0:02:40]} 39. g3 {[%emt 0:00:39]} Rc5 {[%emt 0:00:45]} 40. Kg2 {[%emt 0:00:53]} Ra5 {[%emt 0:00:24]} 41. Rxa5 {[%emt 0:40:25]} bxa5 {[%emt 0:40:01]} 42. b3 {[%emt 0:00:06]} Rxb3 {[%emt 0:00:12]} 43. Rf5 {[%emt 0:00:04]} Rb2+ {[%emt 0:00:00]} 44. Kh3 {[%emt 0:00:00]} Kg6 {[%emt 0:00:00]} 45. Rxa5 {[%emt 0:00:00]} h5 {[%emt 0:00:00]} 46. Rb5 {[%emt 0:00:00]} Ra2 {[%emt 0:00:00]} 47. a5 {[%emt 0:00:00]} Kh6 {[%emt 0:00:00]} 48. Rb6+ {[%emt 0:00:00]} g6 {[%emt 0:00:00]} 49. Ra6 {[%emt 0:00:00]} Kg5 {[%emt 0:00:00]} 50. Ra8 {[%emt 0:00:00]} Ra3 {[%emt 0:00:00]} 51. a6 {[%emt 0:00:00]} h4 {[%emt 0:00:00]} 52. Kg2 {[%emt 0:00:00]} hxg3 {[%emt 0:00:00]} 53. h3 {[%emt 0:00:00]} Kh6 {[%emt 0:00:00]} 54. Ra7 {[%emt 0:00:00]} g5 {[%emt 0:02:12]} 1/2-1/2

[Event "Fagernes Chess GM-Swiss 2024"]
[Site "Fagernes"]
[Date "2024.03.28"]
[Round "6.8"]
[White "Raja Rithvik R"]
[Black "Johansson, Linus"]
[Result "1-0"]
[ECO "E48"]
[WhiteElo "2532"]
[BlackElo "2427"]
[Annotator "TA"]
[PlyCount "53"]
[EventDate "2024.03.25"]
[EventType "swiss"]
[EventCountry "NOR"]
[SourceTitle "playchess.com"]
[Source "ChessBase"]
[SourceQuality "1"]
[TimeControl "40/6000+30:2400+30"]

{[%evp 11,53,4,0,0,-5,-14,-4,-2,-8,-1,7,3,34,17,25,13,19,15,128,115,177,176,602,394,397,404,357,398,388,383,416,408,387,400,377,382,568,540,837,780,789,786,1480,1452]} 1. d4 {[%emt 0:01:30]} Nf6 {[%emt 0:00:05]} 2. c4 {[%emt 0:00:05]} e6 {[%emt 0:00:03]} 3. Nc3 {[%emt 0:00:20]} Bb4 {[%emt 0:00:06]} 4. e3 {[%emt 0:00:06]} O-O {[%emt 0:01:10]} 5. Bd3 {[%emt 0:00:09]} d5 {[%emt 0:00:32]} 6. cxd5 {[%emt 0:00:06]} exd5 {[%emt 0:00:04]} 7. a3 {[%emt 0:00:04]} Bd6 {[%emt 0:00:37]} 8. Qc2 {[%emt 0:00:07]} a6 {[%emt 0:00:21]} 9. Nge2 {[%emt 0:00:08] The position is equal.} Re8 {[%emt 0:00:41]} 10. O-O {[%emt 0:01:57]} b6 {[%emt 0:10:04]} 11. b4 {[%emt 0:00:28]} Bb7 {[%emt 0:00:16]} 12. Rb1 {[%emt 0:01:09]} Qe7 {[%emt 0:02:36]} 13. f3 {[%emt 0:12:37]} g6 {[%emt 0:05:30]} 14. Qb3 {[%emt 0:09:58][%cal Oe3e4]} Qf8 {[%emt 0:10:14]} (14... Nc6 $11) 15. e4 $16 {[%emt 0:03:58] e5 would now be deadly.} dxe4 {[%emt 0:00:45]} (15... Nbd7 $16 {keeps fighting.} 16. e5 (16. exd5 b5 $11) (16. Nxd5 Nxd5 17. exd5 b5 $15) 16... Nxe5 17. dxe5 Bxe5) 16. fxe4 $18 {[%emt 0:00:13]} Nxe4 {[%emt 0:02:50]} (16... Nbd7 17. e5 Nxe5) 17. Rxf7 {[%emt 0:03:30]} Qxf7 {[%emt 0:00:07]} 18. Bc4 {[%emt 0:00:03]} Qxc4 {[%emt 0:00:32]} ({But not} 18... Bxh2+ 19. Kxh2 Nd6 20. Bxf7+ $18) ({Don't blunder} 18... Bd5 $2 19. Bxd5 Bxh2+ 20. Kxh2 $18) 19. Qxc4+ {[%emt 0:00:05]} Kg7 {[%emt 0:00:09]} 20. d5 {[%emt 0:01:01]} Nf6 {[%emt 0:00:54]} 21. Bf4 {[%emt 0:03:53] [#] Strongly threatening Bxd6.} b5 {[%emt 0:00:41]} 22. Qd4 {[%emt 0:01:04]} Nbd7 {[%emt 0:00:11]} 23. Rf1 {[%emt 0:06:46]} Ne5 {[%emt 0:01:12]} (23... Re5 $142 24. Bxe5 Bxe5) 24. Ng3 {[%emt 0:00:32] White is clearly winning.} Rad8 {[%emt 0:03:38]} 25. Nge4 {[%emt 0:02:40]} Nxe4 {[%emt 0:00:14]} 26. Nxe4 {[%emt 0:00:10]} Rd7 {[%emt 0:00:34] [#]} 27. Nf6 $1 {[%emt 0:01:08][%mdl 512] Weighted Error Value: White=0.22 (precise) /Black=0.61.  Mistake:       	---       	Black=4      Inaccurate:     	White=1     	Black=2      OK:         	White=9     	Black=7      Best:        	---       	Black=1} 1-0